bitfinex/quotes_SOLUSD_20260228
["timestamp","ask_amount","ask_price","bid_price","bid_amount"]
[1772311666974,11.7889773,84.825,84.77,12.53488643]
[1772311666975,12.53488643,84.81,84.77,12.53488643]
[1772311667178,11.7889773,84.825,84.74,12.53488643]
[1772311667179,12.53488643,84.79,84.74,12.53488643]
[1772311667485,1e-08,84.837,84.781,41.28283458]
[1772311667688,11.78735257,84.837,84.8,12.53488643]
[1772311667889,1e-08,84.837,84.79,12.53488643]
[1772311668188,58.40191579,84.974,84.83,12.53488643]
[1772311668485,4.5,84.89,84.847,16.14978501]
[1772311668780,53.22,85.02,84.88,12.53488643]
[1772311668781,12.53488643,84.96,84.88,12.53488643]
[1772311668986,58.355599,84.96,84.86,12.53488643]
[1772311669166,29.4259584,84.959,84.827,4.33591906]
[1772311669482,4.36318003,84.929,84.839,11.7870319]
[1772311669781,4.36318003,84.899,84.766,5.64518502]
[1772311669977,4.36318003,84.899,84.706,47.22205673]
[1772311669978,4.36318003,84.839,84.77,12.53488643]
[1772311670486,4.36318003,84.802,84.79,8.03488643]
[1772311670663,4.36318003,84.816,84.77,12.53488643]
[1772311670975,4.36318003,84.841,84.68,1.18091639]
[1772311671176,4.36318003,84.841,84.701,22.38621795]
[1772311671373,4.36318003,84.841,84.722,4.33591906]
[1772311671574,4.36318003,84.839,84.747,4.33591906]
[1772311671882,4.36318003,84.839,84.78,12.53488643]
[1772311672085,4.36318003,84.839,84.773,4.33591906]
[1772311672291,4.36318003,84.809,84.75,16.22872045]
[1772311672481,4.36318003,84.809,84.75,12.53488643]
[1772311672679,4.36318003,84.809,84.746,4.33591906]
[1772311672983,4.36318003,84.809,84.75,12.53488643]
[1772311673176,4.36318003,84.809,84.76,12.53488643]
[1772311673369,4.36318003,84.809,84.751,4.33591906]
[1772311673572,11.79018108,84.817,84.771,4.33591906]
[1772311673775,11.7870319,84.839,84.81,12.53488643]
[1772311673977,11.7870319,84.839,84.8,12.53488643]
[1772311674179,11.7870319,84.839,84.791,4.33591906]
[1772311674180,11.7858193,84.848,84.81,12.53488643]
[1772311674382,4.36318003,84.847,84.8,12.53488643]
[1772311674589,11.7858193,84.848,84.811,4.33591906]
[1772311674784,4.36318003,84.847,84.79,12.53488643]
[1772311675486,4.36318003,84.845,84.79,12.53488643]
[1772311675885,4.36318003,84.845,84.731,58.59009243]
[1772311675886,11.78605944,84.846,84.81,12.53488643]
[1772311676079,4.36318003,84.845,84.801,4.33591906]
[1772311676274,4.36318003,84.845,84.8,12.53488643]
[1772311676792,4.36318003,84.845,84.801,4.33591906]
[1772311677092,4.36318003,84.845,84.78,12.53488643]
[1772311677272,41.25120806,84.846,84.8,12.53488643]
[1772311677599,4.36318003,84.829,84.774,4.33591906]
[1772311677975,4.36318003,84.829,84.78,12.53488643]
[1772311678187,4.36318003,84.829,84.775,11.7959304]
[1772311678592,4.36318003,84.829,84.774,4.33591906]
[1772311678778,41.25120806,84.846,84.741,1.18006631]
[1772311678779,4.36318003,84.809,84.741,1.18006631]
[1772311679089,16.89806646,84.79,84.741,4.33591906]
[1772311679285,4.36318003,84.789,84.728,4.33591906]
[1772311679491,4.36318003,84.777,84.719,11.80371208]
[1772311679686,12.53488643,84.77,84.713,4.33591906]
[1772311679992,4.36318003,84.769,84.713,16.14041959]
[1772311680193,4.36318003,84.769,84.713,16.14039689]
[1772311680492,41.28429544,84.778,84.73,12.53488643]
[1772311680789,4.36318003,84.769,84.71,12.53488643]
[1772311680991,4.36318003,84.769,84.711,11.80484234]
[1772311681177,4.36318003,84.769,84.707,4.33591906]
[1772311681376,4.36318003,84.769,84.706,11.80553915]
[1772311681377,4.36318003,84.759,84.685,1.18084666]
[1772311681576,4.36318003,84.729,84.653,4.33591906]
[1772311681901,4.36318003,84.709,84.656,4.33591906]
[1772311682391,4.36318003,84.723,84.661,4.33591906]
[1772311682794,4.36318003,84.719,84.66,12.53488643]
[1772311683092,4.36318003,84.719,84.655,4.33591906]
[1772311683399,4.36318003,84.735,84.681,4.33591906]
[1772311683610,4.36318003,84.709,84.654,4.33591906]
[1772311683777,4.36318003,84.709,84.631,41.35600429]
[1772311683778,4.36318003,84.699,84.64,12.53488643]
[1772311683978,4.36318003,84.699,84.641,4.33591906]
[1772311684699,100.31392355,84.734,84.626,16.15261841]
[1772311684700,12.53488643,84.68,84.626,16.15261841]
[1772311684894,12.53488643,84.68,84.627,4.33591906]
[1772311685387,4.36318003,84.679,84.63,12.53488643]
[1772311685589,11.80484234,84.711,84.671,4.33591906]
[1772311685898,11.80177734,84.733,84.671,4.33591906]
[1772311686098,4.36318003,84.729,84.67,12.53488643]
[1772311686277,41.3062207,84.733,84.681,4.33591906]
[1772311686781,47.16300132,84.813,84.681,4.33591906]
[1772311686782,11.79871394,84.755,84.72,12.53488643]
[1772311686991,4.36318003,84.749,84.68,12.53488643]
[1772311687200,4.36318003,84.749,84.64,5.36086188]
[1772311687201,4.36318003,84.719,84.663,4.33591906]
[1772311687385,4.36318003,84.709,84.65,12.53488643]
[1772311687588,4.36318003,84.707,84.651,11.81320953]
[1772311687781,4.36318003,84.707,84.65,12.53488643]
[1772311687782,4.36318003,84.707,84.648,11.8136282]
[1772311688089,4.36318003,84.707,84.647,4.33591906]
[1772311688090,12.53488643,84.7,84.647,4.33591906]
[1772311688285,4.36318003,84.699,84.648,11.8136282]
[1772311688495,4.36318003,84.689,84.621,11.81739757]
[1772311688807,12.53488643,84.67,84.622,4.33591906]
[1772311689099,4.36318003,84.669,84.61,12.53488643]
[1772311689299,4.36318003,84.649,84.594,4.33591906]
[1772311689516,12.53488643,84.64,84.594,4.33591906]
[1772311689799,4.36318003,84.639,84.594,1.83591906]
[1772311690005,4.36318003,84.629,84.578,11.82338681]
[1772311690214,3.86318003,84.629,84.58,12.53488643]
[1772311690390,3.86318003,84.629,84.581,4.33591906]
[1772311690583,41.3476987,84.648,84.6,12.53488643]
[1772311690889,11.8136282,84.648,84.601,4.33591906]
[1772311691198,11.8136282,84.648,84.6,12.53488643]
[1772311691414,41.3476987,84.648,84.581,4.33591906]
[1772311691704,5.36086188,84.686,84.53,0.2]
[1772311691705,11.81488439,84.639,84.601,4.33591906]
[1772311692689,11.81306998,84.652,84.611,4.33591906]
[1772311692886,4.36318003,84.651,84.61,12.53488643]
[1772311693102,4.36318003,84.651,84.601,4.33591906]
[1772311693489,11.81334908,84.65,84.61,24.35368574]
[1772311693687,11.81334908,84.65,84.61,12.53488643]
[1772311693894,11.81334908,84.65,84.604,4.33591906]
[1772311694102,4.36318003,84.649,84.59,12.53488643]
[1772311694307,24.34823551,84.65,84.581,4.33591906]
[1772311694308,4.36318003,84.639,84.581,4.33591906]
[1772311694711,41.34672179,84.65,84.601,4.33591906]
[1772311695021,41.34672179,84.65,84.577,41.38240892]
[1772311695022,4.36318003,84.667,84.621,4.33591906]
[1772311695186,56.85383402,84.702,84.594,4.33591906]
[1772311695187,4.36318003,84.649,84.594,4.33591906]
[1772311695383,4.36318003,84.639,84.581,4.33591906]
[1772311695587,4.36318003,84.671,84.611,4.33591906]
[1772311695787,4.36318003,84.659,84.61,12.53488643]
[1772311696008,11.81125612,84.665,84.621,4.33591906]
[1772311696404,11.81125612,84.665,84.631,4.25960866]
[1772311697308,11.81044861,84.671,84.631,4.25960866]
[1772311697487,41.3301661,84.684,84.632,11.81586161]
[1772311697688,4.07596708,84.683,84.632,11.81586161]
[1772311698220,4.07596708,84.683,84.633,4.25960866]
[1772311698393,4.07596708,84.679,84.62,16.79449509]
[1772311698596,4.07596708,84.669,84.62,4.25960866]
[1772311699403,4.07596708,84.669,84.61,24.35368307]
[1772311699597,11.81083762,84.668,84.622,4.25960866]
[1772311699803,45.41389876,84.668,84.622,4.25960866]
[1772311700006,4.07596708,84.667,84.622,4.25960866]
[1772311700503,4.07596708,84.667,84.611,11.81879424]
[1772311701098,4.07596708,84.667,84.612,4.25960866]
[1772311701311,4.07596708,84.667,84.62,12.5506066]
[1772311701705,4.07596708,84.665,84.613,11.81851488]
[1772311701898,4.07596708,84.665,84.613,16.07812354]
[1772311702103,4.07596708,84.665,84.613,4.25960866]
[1772311702610,4.07596708,84.659,84.606,11.81947327]
[1772311702805,4.07596708,84.659,84.601,11.82017889]
[1772311703012,4.07596708,84.659,84.602,4.25960866]
[1772311703514,11.80916391,84.68,84.631,4.25960866]
[1772311703814,4.07596708,84.677,84.631,4.25960866]
[1772311704716,11.80623605,84.701,84.661,4.25960866]
[1772311705019,4.07596708,84.718,84.671,4.25960866]
[1772311705214,4.07596708,84.718,84.68,12.5506066]
[1772311705806,11.80460783,84.713,84.681,11.80902445]
[1772311706013,4.07596708,84.718,84.681,11.80902445]
[1772311706014,11.803869,84.718,84.681,11.80902445]
[1772311706215,59.00050973,84.746,84.681,11.80902445]
[1772311706216,4.07596708,84.745,84.701,4.25960866]
[1772311706418,41.30085905,84.744,84.701,4.25960866]
[1772311706609,11.80024544,84.744,84.701,4.25960866]
[1772311706813,11.79959977,84.749,84.701,4.25960866]
[1772311706999,4.07596708,84.748,84.701,4.25960866]
[1772311707813,4.07596708,84.746,84.702,11.80609666]
[1772311708005,4.07596708,84.746,84.691,4.25960866]
[1772311708413,4.07596708,84.746,84.7,12.5506066]
[1772311708722,4.07596708,84.746,84.701,4.25960866]
[1772311710109,4.07596708,84.759,84.711,4.25960866]
[1772311711224,4.07596708,84.759,84.702,41.32133833]
[1772311711408,4.07596708,84.759,84.702,11.80609666]
[1772311711727,12.5506066,84.75,84.698,4.25960866]
[1772311711926,4.07596708,84.749,84.691,4.25960866]
[1772311712116,11.79968848,84.748,84.702,11.80609666]
[1772311712424,4.07596708,84.747,84.702,11.80609666]
[1772311713021,4.07596708,84.747,84.703,4.25960866]
[1772311714017,15.87593404,84.746,84.704,11.8058179]
[1772311714326,15.87593404,84.746,84.663,1.18115351]
[1772311714327,12.5506066,84.71,84.65,12.5506066]
[1772311714652,4.07596708,84.726,84.67,12.5506066]
[1772311714807,4.07596708,84.738,84.681,4.25960866]
[1772311715207,4.07596708,84.729,84.681,4.25960866]
[1772311715431,4.07596708,84.719,84.669,4.25960866]
[1772311715638,4.07596708,84.709,84.669,4.25960866]
[1772311715930,4.07596708,84.709,84.651,4.25960866]
[1772311716138,12.5506066,84.74,84.681,4.25960866]
[1772311716441,3.69383402,84.742,84.652,11.81306998]
[1772311716442,3.69383402,84.742,84.711,4.25960866]
[1772311716837,11.79995254,84.747,84.711,4.25960866]
[1772311718126,11.79995254,84.747,84.712,11.80470299]
[1772311718908,4.07596708,84.746,84.699,4.25960866]
[1772311720137,4.07596708,84.744,84.671,4.25960866]
[1772311720426,11.8001062,84.745,84.681,4.25960866]
[1772311720427,4.07596708,84.736,84.681,4.25960866]
[1772311720814,12.5506066,84.73,84.681,4.25960866]
[1772311721014,4.07596708,84.729,84.681,4.25960866]
[1772311721330,4.07596708,84.729,84.67,12.5506066]
[1772311721629,4.07596708,84.719,84.669,4.25960866]
[1772311722328,4.07596708,84.717,84.67,11.81055863]
[1772311722529,4.07596708,84.717,84.669,4.25960866]
[1772311723249,3.57596708,84.717,84.669,4.25960866]
[1772311723814,3.57596708,84.717,84.66,11.81190206]
[1772311724116,3.57596708,84.717,84.657,4.25960866]
[1772311724117,8.03970065,84.71,84.658,11.81223274]
[1772311724414,41.31792371,84.709,84.658,11.81223274]
[1772311724833,11.80512106,84.709,84.671,4.42428613]
[1772311725049,8.03970065,84.73,84.671,4.42428613]
[1772311725338,4.44693648,84.729,84.671,4.42428613]
[1772311725708,4.44693648,84.729,84.681,4.42428613]
[1772311725906,19.84189585,84.73,84.691,4.42428613]
[1772311726110,4.44693648,84.719,84.68,4.42428613]
[1772311726310,4.24092949,84.717,84.671,11.81041915]
[1772311726634,4.24092949,84.717,84.672,4.28824939]
[1772311726933,2.17029766,84.717,84.672,4.28824939]
[1772311727936,8.03970065,84.71,84.672,4.28824939]
[1772311728339,41.31792371,84.709,84.672,4.28824939]
[1772311728815,11.80512106,84.709,84.672,4.28824939]
[1772311729008,11.80512106,84.709,84.674,4.28824939]
[1772311729206,3.94059053,84.708,84.663,4.28824939]
[1772311729445,8.03970065,84.7,84.663,4.28824939]
[1772311729731,3.94059053,84.708,84.663,4.28824939]
[1772311730321,41.31889925,84.707,84.663,4.28824939]
[1772311730552,11.8028917,84.725,84.671,4.28824939]
[1772311731134,41.31012097,84.725,84.681,4.28824939]
[1772311732851,41.31012097,84.725,84.683,4.28824939]
[1772311733153,58.98925535,84.762,84.69,8.03970065]
[1772311733327,8.03970065,84.78,84.731,4.28824939]
[1772311733529,3.94059053,84.788,84.741,4.28824939]
[1772311733827,11.98029118,84.8,84.751,4.28824939]
[1772311734045,3.94059053,84.799,84.751,4.28824939]
[1772311734637,8.03970065,84.79,84.751,4.28824939]
[1772311735042,3.94059053,84.797,84.751,4.28824939]
[1772311735643,41.27455836,84.798,84.751,4.28824939]
[1772311735848,41.27455836,84.798,84.753,4.28824939]
[1772311736743,11.79209223,84.803,84.761,4.28824939]
[1772311736951,11.79551298,84.778,84.721,4.28824939]
[1772311737155,11.79551298,84.778,84.731,4.28824939]
[1772311738354,11.79398271,84.789,84.741,4.28824939]
[1772311739055,11.79398271,84.789,84.743,4.28824939]
[1772311739550,3.94059053,84.788,84.743,4.28824939]
[1772311739847,3.94059053,84.779,84.72,8.03970065]
[1772311740050,11.79398271,84.789,84.703,4.28824939]
[1772311740051,8.03970065,84.75,84.703,4.28824939]
[1772311740253,3.94059053,84.739,84.691,4.28824939]
[1772311740436,8.03970065,84.73,84.681,4.28824939]
[1772311740833,8.03970065,84.74,84.691,4.28824939]
[1772311741031,8.03970065,84.74,84.69,8.03970065]
[1772311741032,8.03970065,84.73,84.693,4.28824939]
[1772311741649,8.03970065,84.71,84.669,4.28824939]
[1772311741842,41.30329599,84.739,84.671,4.28824939]
[1772311741843,3.94059053,84.729,84.671,4.28824939]
[1772311742137,3.69383402,84.762,84.711,4.28824939]
[1772311742138,11.79854631,84.757,84.711,4.28824939]
[1772311742453,59.84728292,84.805,84.66,8.03970065]
[1772311742454,3.94059053,84.779,84.731,4.28824939]
[1772311742750,11.79551298,84.778,84.731,4.28824939]
[1772311742951,41.28429544,84.778,84.731,4.28824939]
[1772311743141,3.94059053,84.777,84.732,11.80191663]
[1772311743330,3.94059053,84.777,84.733,4.28824939]
[1772311743747,41.28429544,84.778,84.733,4.28824939]
[1772311744381,3.69383402,84.802,84.761,4.28824939]
[1772311744668,3.69383402,84.802,84.731,41.3071957]
[1772311744669,3.69383402,84.802,84.771,4.28824939]
[1772311744960,3.94059053,84.839,84.791,4.28824939]
[1772311745164,11.78717084,84.838,84.793,4.28824939]
[1772311745338,3.94059053,84.837,84.793,4.28824939]
[1772311745944,3.94059053,84.837,84.78,8.03970065]
[1772311745945,8.03970065,84.86,84.811,4.28824939]
[1772311746176,11.79382225,84.903,84.811,4.28824939]
[1772311746177,8.03970065,84.87,84.811,4.28824939]
[1772311746452,11.78174178,84.878,84.831,4.28824939]
[1772311746656,11.78087754,84.884,84.841,4.28824939]
[1772311746831,11.78087754,84.884,84.851,4.28824939]
[1772311747038,8.03970065,84.973,84.871,4.28824939]
[1772311747236,11.77444985,84.93,84.901,4.28824939]
[1772311747534,11.77147401,84.952,84.901,4.28824939]
[1772311747732,8.03970065,84.95,84.901,4.28824939]
[1772311747936,3.94059053,84.949,84.901,4.28824939]
[1772311748443,8.03970065,84.94,84.891,4.28824939]
[1772311748850,3.94059053,84.949,84.891,4.28824939]
[1772311749053,45.14226683,84.948,84.893,4.28824939]
[1772311749241,3.94059053,84.947,84.893,4.28824939]
[1772311749759,8.03970065,84.94,84.893,4.28824939]
[1772311749955,3.94059053,84.929,84.881,4.28824939]
[1772311750461,8.03970065,84.92,84.881,4.28824939]
[1772311750658,41.2016763,84.948,84.84,4.28824939]
[1772311750659,4.27951928,84.891,84.84,4.28824939]
[1772311750852,8.03970065,84.87,84.84,4.28824939]
[1772311751055,3.94059053,84.869,84.818,4.28824939]
[1772311751259,3.94059053,84.869,84.82,4.28824939]
[1772311751558,4.24092949,84.839,84.78,8.03970065]
[1772311752154,8.03970065,84.84,84.79,8.03970065]
[1772311752336,4.24092949,84.851,84.748,58.99790667]
[1772311752337,4.24092949,84.851,84.81,8.03970065]
[1772311752554,8.03970065,84.86,84.81,8.03970065]
[1772311753080,11.78425387,84.859,84.811,11.79092334]
[1772311753463,4.24092949,84.858,84.812,4.28824939]
[1772311753658,4.24092949,84.849,84.8,4.28824939]
[1772311753961,41.24488856,84.859,84.791,4.28824939]
[1772311753962,8.03970065,84.84,84.791,4.28824939]
[1772311754275,8.03970065,84.85,84.801,4.28824939]
[1772311755180,11.78564273,84.849,84.803,4.28824939]
[1772311755867,11.78463058,84.857,84.811,4.28824939]
[1772311756193,4.24092949,84.904,84.851,4.28824939]
[1772311756348,12.11884715,84.891,84.851,4.28824939]
[1772311757061,12.11884715,84.891,84.86,8.03970065]
[1772311757257,12.11884715,84.891,84.851,4.28824939]
[1772311757451,12.11884715,84.891,84.86,8.03970065]
[1772311758153,12.11884715,84.891,84.851,4.28824939]
[1772311758572,0.33892875,84.891,84.853,4.18186423]
[1772311758749,11.77995052,84.89,84.853,4.18186423]
[1772311759677,11.77995052,84.89,84.82,4.18186423]
[1772311759678,4.08258679,84.869,84.82,4.18186423]
[1772311759865,8.03970065,84.85,84.82,4.18186423]
[1772311760066,8.03970065,84.86,84.82,4.18186423]
[1772311760379,11.77806976,84.904,84.851,11.78536493]
[1772311760672,8.03970065,84.87,84.821,4.18186423]
[1772311760864,4.12382505,84.877,84.83,8.03970065]
[1772311761476,4.12382505,84.877,84.83,8.00679619]
[1772311761776,8.00679619,84.87,84.83,8.00679619]
[1772311762558,8.00679619,84.86,84.821,4.18186423]
[1772311762774,8.00679619,84.85,84.821,4.18186423]
[1772311762962,8.00679619,84.86,84.821,4.18186423]
[1772311763976,45.36385379,84.869,84.821,4.18186423]
[1772311764180,8.00679619,84.88,84.83,8.00679619]
[1772311764475,4.12382505,84.883,84.821,4.18186423]
[1772311764476,11.78425387,84.859,84.821,4.18186423]
[1772311764656,8.00679619,84.85,84.821,4.18186423]
[1772311765059,8.00679619,84.88,84.84,12.18866042]
[1772311765261,12.48601562,84.88,84.841,4.18186423]
[1772311766275,12.48601562,84.91,84.871,4.18186423]
[1772311766457,11.77969996,84.892,84.871,4.18186423]
[1772311766662,12.48601562,84.9,84.871,4.18186423]
[1772311766884,11.779198,84.896,84.871,4.18186423]
[1772311767071,58.87277087,84.929,84.86,12.48601562]
[1772311767072,11.77995052,84.89,84.86,12.48601562]
[1772311767278,12.48601562,84.88,84.842,4.18186423]
[1772311767861,12.48601562,84.87,84.842,4.18186423]
[1772311768264,12.48601562,84.88,84.842,4.18186423]
[1772311768570,11.78147716,84.879,84.844,4.18186423]
[1772311768764,11.78017217,84.889,84.844,4.18186423]
[1772311768962,11.77731453,84.909,84.871,4.18186423]
[1772311769379,12.48601562,84.92,84.88,12.48601562]
[1772311769567,12.48601562,84.92,84.881,4.18186423]
[1772311770379,12.48601562,84.91,84.881,4.18186423]
[1772311770578,41.21089379,84.929,84.851,1.17853649]
[1772311770579,11.77454108,84.929,84.883,4.18186423]
[1772311770779,11.77454108,84.929,84.851,72.74853649]
[1772311770780,12.48601562,84.91,84.872,4.18186423]
[1772311771373,12.48601562,84.9,84.872,4.18186423]
[1772311771772,12.48601562,84.88,84.839,4.18186423]
[1772311771977,4.12382505,84.889,84.841,4.18186423]
[1772311771978,12.48601562,84.87,84.841,4.18186423]
[1772311772690,12.48601562,84.88,84.841,4.18186423]
[1772311773983,12.48601562,84.86,84.815,11.79035252]
[1772311774694,11.78425387,84.859,84.791,1.17937045]
[1772311774877,11.78425387,84.859,84.82,12.48601562]
[1772311775084,41.24488856,84.859,84.81,12.48601562]
[1772311775392,12.48601562,84.84,84.792,11.79356543]
[1772311776070,41.24488856,84.859,84.781,4.18186423]
[1772311776071,12.48601562,84.81,84.781,4.18186423]
[1772311776787,4.12382505,84.857,84.791,4.18186423]
[1772311776984,12.48601562,84.84,84.791,4.18186423]
[1772311777191,12.48601562,84.84,84.782,41.28234766]
[1772311777192,12.48601562,84.84,84.801,4.18186423]
[1772311778781,11.7870319,84.839,84.801,4.18186423]
[1772311779093,15.91085695,84.839,84.801,4.18186423]
[1772311779685,12.48601562,84.83,84.801,4.18186423]
[1772311779996,45.37843671,84.839,84.801,4.18186423]
[1772311780379,24.27151945,84.85,84.811,4.18186423]
[1772311781175,29.4593495,84.863,84.812,4.18186423]
[1772311781375,11.78300419,84.868,84.831,4.18186423]
[1772311782097,11.78161627,84.878,84.831,4.18186423]
[1772311782296,11.77939548,84.894,84.851,4.18186423]
[1772311782485,41.22788418,84.894,84.851,4.18186423]
[1772311782811,12.48601562,84.89,84.851,4.18186423]
[1772311782989,4.12382505,84.879,84.828,4.18186423]
[1772311783192,11.78425387,84.859,84.828,4.18186423]
[1772311783882,12.48601562,84.84,84.801,4.13407762]
[1772311784081,4.05918816,84.849,84.801,4.13407762]
[1772311784482,11.78425387,84.859,84.811,4.13407762]
[1772311784694,11.78425387,84.859,84.81,12.48601562]
[1772311784695,12.48601562,84.89,84.851,4.13407762]
[1772311784910,16.54520378,84.88,84.84,12.48601562]
[1772311785109,4.05918816,84.88,84.841,4.13407762]
[1772311785486,11.78147716,84.879,84.841,4.13407762]
[1772311785686,11.78147716,84.879,84.816,1.17902282]
[1772311785687,12.48601562,84.86,84.828,4.13407762]
[1772311786000,12.48601562,84.86,84.816,4.13407762]
[1772311786601,4.05918816,84.869,84.821,4.31469797]
[1772311786796,11.78147716,84.879,84.841,4.31469797]
[1772311787182,41.23517006,84.879,84.841,4.31469797]
[1772311787583,45.68670475,84.879,84.841,4.31469797]
[1772311787899,4.45153469,84.878,84.83,8.00563443]
[1772311788096,4.45153469,84.859,84.817,16.10477738]
[1772311788884,8.00563443,84.85,84.817,4.31469797]
[1772311789098,4.45153469,84.859,84.817,4.31469797]
[1772311789684,4.45153469,84.857,84.817,4.31469797]
[1772311789881,8.00563443,84.85,84.817,4.31469797]
[1772311792212,11.78564273,84.849,84.817,4.31469797]
[1772311792716,11.78564273,84.849,84.821,4.31469797]
[1772311793416,4.45153469,84.829,84.738,4.31469797]
[1772311793594,41.24974955,84.849,84.801,4.31469797]
[1772311793595,1.17948173,84.839,84.801,4.31469797]
[1772311793912,4.40701934,84.828,84.739,1.18009417]
[1772311794087,1.17948173,84.848,84.68,8.00563443]
[1772311794088,8.00563443,84.75,84.68,8.00563443]
[1772311794289,8.00563443,84.75,84.6,8.00563443]
[1772311794290,41.2989097,84.748,84.7,8.00563443]
[1772311794492,8.00563443,84.72,84.67,8.00563443]
[1772311794705,8.00563443,84.74,84.69,8.00563443]
[1772311795101,8.00563443,84.73,84.68,8.00563443]
[1772311795396,11.79537385,84.779,84.71,8.00563443]
[1772311795594,19.80089117,84.78,84.73,8.00563443]
[1772311796001,8.00563443,84.77,84.731,4.31469797]
[1772311796209,11.79676532,84.769,84.731,4.31469797]
[1772311796617,11.79676532,84.769,84.733,4.31469797]
[1772311797115,11.79605786,84.775,84.741,4.31469797]
[1772311797303,11.79605786,84.775,84.712,0.59051352]
[1772311797304,8.00563443,84.75,84.728,4.31469797]
[1772311797514,8.00563443,84.74,84.716,4.31469797]
[1772311797694,8.00563443,84.75,84.716,4.31469797]
[1772311797891,8.00563443,84.73,84.701,4.31469797]
[1772311798213,8.00563443,84.73,84.691,4.31469797]
[1772311798395,8.00563443,84.71,84.691,4.31469797]
[1772311798601,8.00563443,84.73,84.691,4.31469797]
[1772311799112,8.00563443,84.72,84.691,4.31469797]
[1772311799491,8.00563443,84.75,84.711,4.31469797]
[1772311800311,8.00563443,84.75,84.684,3.69383402]
[1772311800312,4.45153469,84.719,84.669,4.31469797]
[1772311800513,8.00563443,84.7,84.669,4.31469797]
[1772311800712,8.03521985,84.72,84.681,4.31469797]
[1772311800917,100.29616867,84.749,84.682,0.59212986]
[1772311800918,4.45153469,84.749,84.682,0.59212986]
[1772311801213,4.45153469,84.779,84.684,0.97680781]
[1772311801395,4.45153469,84.779,84.692,0.97680781]
[1772311801596,1.47337898,84.839,84.701,0.28432314]
[1772311801814,1.47337898,84.839,84.695,0.28432314]
[1772311801815,11.78717084,84.838,84.735,3.69383402]
[1772311802113,11.78717084,84.838,84.723,0.97680781]
[1772311802114,8.03521985,84.78,84.723,0.97680781]
[1772311802304,8.03521985,84.78,84.677,58.236015]
[1772311802305,8.03521985,84.76,84.724,11.80303101]
[1772311802702,8.03521985,84.75,84.713,11.80456364]
[1772311802910,4.45153469,84.759,84.713,11.80456364]
[1772311802911,8.03521985,84.76,84.714,0.97680781]
[1772311803300,4.45153469,84.773,84.714,0.97680781]
[1772311803496,8.03521985,84.77,84.714,0.97680781]
[1772311803796,8.03521985,84.77,84.713,41.31597275]
[1772311803797,4.45153469,84.759,84.7,11.80637544]
[1772311804005,1.47443912,84.778,84.7,11.80637544]
[1772311804006,8.03521985,84.76,84.701,0.97680781]
[1772311804231,4.45153469,84.786,84.706,0.97680781]
[1772311804402,4.45153469,84.786,84.703,11.80595728]
[1772311804403,4.45153469,84.786,84.709,0.97680781]
[1772311804603,8.03521985,84.78,84.711,0.97680781]
[1772311805020,8.03521985,84.77,84.713,0.97680781]
[1772311805220,4.45153469,84.779,84.713,0.97680781]
[1772311805407,4.45153469,84.779,84.715,0.97680781]
[1772311805921,8.03521985,84.75,84.703,41.32085049]
[1772311806108,8.03521985,84.74,84.721,2.04531344]
[1772311806303,8.03521985,84.75,84.721,2.04531344]
[1772311806616,8.03521985,84.74,84.721,2.04531344]
[1772311807002,8.03521985,84.74,84.708,11.80525619]
[1772311807306,8.03521985,84.75,84.708,11.80525619]
[1772311808023,1.47494365,84.749,84.708,11.80525619]
[1772311808219,8.03521985,84.75,84.708,11.80525619]
[1772311808435,11.79954925,84.749,84.708,11.80525619]
[1772311808760,11.79954925,84.749,84.708,12.782064]
[1772311809806,11.79954925,84.749,84.637,35.63]
[1772311809807,12.48675454,84.78,84.709,1.1805121]
[1772311810021,12.53521985,84.77,84.709,1.1805121]
[1772311810424,8.03521985,84.76,84.709,1.1805121]
[1772311810730,4.5,84.769,84.709,1.1805121]
[1772311810929,8.03521985,84.76,84.709,1.1805121]
[1772311811313,4.5,84.769,84.709,1.1805121]
[1772311812010,4.5,84.767,84.713,3.69383402]
[1772311812309,4.5,84.759,84.713,3.69383402]
[1772311812514,8.03521985,84.74,84.71,11.8049817]
[1772311812715,4.5,84.749,84.71,41.31743595]
[1772311813017,8.03521985,84.75,84.71,41.31743595]
[1772311813221,13.91798794,84.76,84.71,41.31743595]
[1772311813418,1.38276809,84.767,84.71,41.31743595]
[1772311813624,8.03521985,84.76,84.71,41.31743595]
[1772311814026,8.03521985,84.76,84.699,59.03224446]
[1772311814205,8.03521985,84.76,84.7,1.18063754]
[1772311814412,8.03521985,84.74,84.694,3.69383402]
[1772311814931,8.03521985,84.74,84.691,41.32670531]
[1772311814932,4.5,84.729,84.691,41.32670531]
[1772311815106,8.03521985,84.74,84.694,3.69383402]
[1772311815313,4.5,84.747,84.694,3.69383402]
[1772311815513,5.88276809,84.759,84.694,3.69383402]
[1772311815730,8.03521985,84.74,84.694,3.69383402]
[1772311816246,4.5,84.729,84.695,11.80707243]
[1772311816930,4.5,84.719,84.695,11.80707243]
[1772311817325,4.5,84.719,84.685,11.80846667]
[1772311818427,4.5,84.719,84.648,100.70016284]
[1772311818626,4.5,84.719,84.65,0.28432314]
[1772311818827,4.5,84.719,84.651,4.87515497]
[1772311820314,8.03521985,84.73,84.651,4.87515497]
[1772311820529,4.5,84.733,84.661,3.69383402]
[1772311820725,4.5,84.733,84.662,1.18116746]